Workbook

Sheet Inicio
O1: 6
D2: Indicadores Sistema Eléctrico CCAA | I2: www.ree.es
I3: Fecha de actualización: | K3: 2026-04-20
E8: =-B -> 
L9: A

Sheet Cuadro mando
A3: Principales Indicadores Andalucía 2025
B7: RED DE TRANSPORTE1
I45: (1) km líneas de la Red de Transporte

Sheet Red_de_transporte
A3: Red de transporte Andalucía 2025
B7: RED DE TRANSPORTE1 | H7: VARIACIONES DE LA RdT
B11: AÑO 2025 | D11: =datos_RdT!C72 -> Andalucía | E11: España | F11: % del total
B12: km circuitos 400 kV | D12: =datos_RdT!C73 -> 3031.00159 | E12: =datos_RdT!V73 -> 22316.415 | F12: =IF(D12="","",D12*100/E12) -> 13.58193773
B13: km circuitos 220 kV | D13: =datos_RdT!C74 -> 3355.851495 | E13: =datos_RdT!V74 -> 20488.03902 | F13: =IF(D13="","",D13*100/E13) -> 16.37956415
B14: km circuitos <220 kV | D14: =datos_RdT!C75 -> 70.095 | E14: =datos_RdT!V75 -> 3350.746 | F14: 2.091922217
B15: km circuitos | D15: =datos_RdT!C76 -> 6456.948084 | E15: =datos_RdT!V76 -> 46155.20002 | F15: 13.98964381
B16: Posiciones 400 kV | D16: =datos_RdT!C78 -> 241 | E16: =datos_RdT!V78 -> 1848 | F16: =IF(D16="","",D16*100/E16) -> 13.04112554
B17: Posiciones 220 kV | D17: =datos_RdT!C79 -> 516 | E17: =datos_RdT!V79 -> 3746 | F17: =IF(D17="","",D17*100/E17) -> 13.77469301
B18: Posiciones <220 kV | D18: =datos_RdT!C80 -> 12 | E18: =datos_RdT!V80 -> 1285 | F18: 0.9338521401
B19: Posiciones | D19: =datos_RdT!C81 -> 769 | E19: =datos_RdT!V81 -> 6879 | F19: =D19*100/E19 -> 11.17895043
B20: Transformadores2 (MVA) | D20: =datos_RdT!C83 -> 15270 | E20: =datos_RdT!V83 -> 96025 | F20: 15.90210883
B22: (1) Incluye los activos de la red de transporte del resto de empresas.
B23: (2) No contempla desfasadores
B26: EVOLUCIÓN DE LA RdT | H26: % km LÍNEAS C.A. vs. KILÓMETROS TOTALES

Sheet AVISO LEGAL

Sheet datos_RdT (hidden)
B1: 2020
B2: CCAA | C2: Andalucía | D2: Aragón | E2: Asturias | F2: Baleares | G2: C. Valenciana | H2: Canarias | I2: Cantabria | J2: Castilla-La Mancha | K2: Castilla y León | L2: Cataluña | M2: Ceuta | N2: Extremadura | O2: Galicia | P2: La Rioja | Q2: Madrid | R2: Melilla | S2: Murcia | T2: Navarra | U2: País Vasco | V2: TOTAL | W2: MÓVILES | X2: PENINSULAR | Y2: NO PENINSULAR
B3: km líneas 400 kV | C3: 2774.14959 | D3: 1447.051699 | E3: 539.0682043 | G3: 1073.171488 | I3: 240.5107043 | J3: 2612.814496 | K3: 4511.660432 | L3: 2237.079333 | N3: 2291.070447 | O3: 1346.726287 | P3: 114.9490595 | Q3: 992.6117087 | S3: 708.1121371 | T3: 175.9700702 | U3: 698.9563434 | V3: =SUM(C3:U3) -> 21763.902 | X3: =V3-Y3 -> 21763.902 | Y3: =F3+H3 -> 0
B4: km líneas 220 kV | C4: 3258.615495 | D4: 1885.140817 | E4: 432.2110202 | F4: 447.664 | G4: 1334.47326 | H4: 239.145 | I4: 324.1211061 | J4: 1528.303979 | K4: 3317.344074 | L4: 2546.688294 | N4: 859.3478674 | O4: 1332.484 | P4: 142.308 | Q4: 1186.993385 | S4: 123.86974 | T4: 318.8290202 | U4: 661.8999412 | V4: =SUM(C4:U4) -> 19939.439 | X4: =V4-Y4 -> 19252.63 | Y4: =F4+H4 -> 686.809
B5: km líneas <220 kV | F5: 1481.116 | H5: 1321.842 | L5: 39.44 | N5: 5.04 | O5: 12.3 | P5: 0 | Q5: 0 | V5: 2859.738 | X5: 56.78 | Y5: 2802.958
B6: Total km líneas | C6: =SUM(C3:C5) -> 6032.765084 | D6: =SUM(D3:D5) -> 3332.192516 | E6: 971.2792245 | F6: 1928.78 | G6: 2407.644748 | H6: 1560.987 | I6: 564.6318104 | J6: 4141.118476 | K6: 7829.004506 | L6: 4823.207627 | M6: 0 | N6: 3155.458314 | O6: 2691.510287 | P6: 257.2570595 | Q6: 2179.605094 | R6: 0 | S6: 831.9818771 | T6: 494.7990904 | U6: 1360.856285 | V6: 44563.079 | W6: 0 | X6: 41073.312 | Y6: =SUM(Y3:Y5) -> 3489.767
B7: =CONCATENATE("Δ" & $B$1 & "/" & $B$1-1) -> Δ2020/2019 | C7: 0.003680040024 | D7: 0.2585449889 | E7: 1.068247527 | F7: 2.96046433 | G7: 0 | H7: 0.761364634 | I7: 0 | J7: 0.09087924148 | K7: 0 | L7: 0.2446254303 | N7: 0.3172808394 | O7: 0.1766437057 | P7: 0 | Q7: 0.002569338775 | S7: 0 | T7: 0 | U7: 0 | V7: 0.2624440135 | X7: 0.1204004912 | Y7: 1.96504732
B8: Posiciones 400 kV | C8: 185 | D8: 109 | E8: 55 | G8: 181 | I8: 15 | J8: 118 | K8: 247 | L8: 147 | N8: 113 | O8: 71 | P8: 8 | Q8: 109 | S8: 74 | T8: 30 | U8: 86 | V8: =SUM(C8:U8) -> 1548 | X8: =V8-Y8 -> 1548 | Y8: =F8+H8 -> 0
B9: Posiciones 220 kV | C9: 454 | D9: 226 | E9: 44 | F9: 125 | G9: 323 | H9: 75 | I9: 48 | J9: 143 | K9: 251 | L9: 600 | N9: 87 | O9: 222 | P9: 29 | Q9: 551 | S9: 44 | T9: 50 | U9: 149 | V9: =SUM(C9:U9)+W9 -> 3428 | W9: 7 | X9: =V9-Y9 -> 3228 | Y9: =F9+H9 -> 200
B10: Posiciones <220 kV | F10: 559 | H10: 546 | L10: 3 | N10: 0 | O10: 1 | V10: =SUM(C10:U10) -> 1109 | X10: =V10-Y10 -> 4 | Y10: =F10+H10 -> 1105
B11: Total posiciones | C11: =SUM(C8:C10) -> 639 | D11: =SUM(D8:D10) -> 335 | E11: 99 | F11: 684 | G11: 504 | H11: 621 | I11: 63 | J11: 261 | K11: 498 | L11: 750 | M11: 0 | N11: 200 | O11: 294 | P11: 37 | Q11: 660 | R11: 0 | S11: 118 | T11: 80 | U11: 235 | V11: 6085 | W11: 7 | X11: =SUM(X8:X10) -> 4780 | Y11: 1305
B12: =CONCATENATE("Δ" & $B$1 & "/" & $B$1-1) -> Δ2020/2019 | C12: -1.540832049 | D12: -0.2976190476 | E12: 5.319148936 | F12: -1.013024602 | G12: -0.7874015748 | H12: 7.25388601 | I12: -3.076923077 | J12: 1.556420233 | K12: -1.386138614 | L12: -2.470741222 | N12: 1.52284264 | O12: -3.606557377 | P12: -2.631578947 | Q12: 3.773584906 | S12: -0.8403361345 | T12: 2.564102564 | U12: 0.8583690987 | V12: 0.3132212331 | W12: 0 | X12: -0.3336113428 | Y12: 2.755905512
B13: Transformadores | C13: 15020 | D13: 5056 | E13: 1300 | F13: 3838 | G13: 8950 | H13: 3630 | I13: 2100 | J13: 1200 | K13: 6131 | L13: 11500 | N13: 2800 | O13: 5700 | P13: 600 | Q13: 11100 | R13: 0 | S13: 3450 | T13: 1600 | U13: 5100 | V13: =SUM(C13:U13)+W13 -> 89975 | W13: 900 | X13: =V13-Y13 -> 82507 | Y13: =F13+H13 -> 7468
B14: =CONCATENATE("Δ" & $B$1 & "/" & $B$1-1) -> Δ2020/2019 | C14: 0 | D14: 0 | E14: 0 | F14: 0 | G14: 0 | H14: 4.610951009 | I14: 0 | J14: 0 | K14: 0 | L14: 0 | N14: 0 | O14: 0 | P14: 0 | Q14: 0 | S14: 0 | T14: 0 | U14: 0 | V14: 0.1781439626 | W14: 0 | X14: 0 | Y14: 2.1893815
B15: 2021
B16: CCAA | C16: Andalucía | D16: Aragón | E16: Asturias | F16: Baleares | G16: C. Valenciana | H16: Canarias | I16: Cantabria | J16: Castilla-La Mancha | K16: Castilla y León | L16: Cataluña | M16: Ceuta | N16: Extremadura | O16: Galicia | P16: La Rioja | Q16: Madrid | R16: Melilla | S16: Murcia | T16: Navarra | U16: País Vasco | V16: TOTAL | W16: MÓVILES | X16: PENINSULAR | Y16: NO PENINSULAR
B17: km líneas 400 kV | C17: 2774.14959 | D17: 1448.037699 | E17: 539.0682043 | G17: 1074.437488 | I17: 240.5107043 | J17: 2612.814496 | K17: 4511.660432 | L17: 2237.079333 | N17: 2293.298447 | O17: 1346.726287 | P17: 114.9490595 | Q17: 992.6117087 | S17: 708.1121371 | T17: 175.9700702 | U17: 698.9563434 | V17: =SUM(C17:U17) -> 21768.382 | X17: =V17-Y17 -> 21768.382 | Y17: =F17+H17 -> 0
B18: km líneas 220 kV | C18: 3266.267495 | D18: 1904.367817 | E18: 432.5490202 | F18: 447.664 | G18: 1350.38626 | H18: 240.249 | I18: 324.1211061 | J18: 1528.303979 | K18: 3348.948074 | L18: 2546.688294 | N18: 909.1758674 | O18: 1388.335 | P18: 142.308 | Q18: 1186.993385 | S18: 123.86974 | T18: 318.8290202 | U18: 661.9799412 | V18: =SUM(C18:U18) -> 20121.036 | X18: =V18-Y18 -> 19433.123 | Y18: =F18+H18 -> 687.913
B19: km líneas <220 kV | F19: 1481.116 | G19: 0 | H19: 1337.996 | L19: 39.44 | N19: 8.05 | O19: 12.3 | V19: =SUM(C19:U19) -> 2878.902 | X19: 59.79 | Y19: 2819.112
B20: Total km líneas | C20: =SUM(C17:C19) -> 6040.417084 | D20: =SUM(D17:D19) -> 3352.405516 | E20: 971.6172245 | F20: 1928.78 | G20: 2424.823748 | H20: 1578.245 | I20: 564.6318104 | J20: 4141.118476 | K20: 7860.608506 | L20: 4823.207627 | M20: 0 | N20: 3210.524314 | O20: 2747.361287 | P20: 257.2570595 | Q20: 2179.605094 | R20: 0 | S20: 831.9818771 | T20: 494.7990904 | U20: 1360.936285 | V20: =SUM(V17:V19) -> 44768.32 | W20: =SUM(W17:W19) -> 0 | X20: 41261.295 | Y20: 3507.025
B21: =CONCATENATE("Δ" & $B$15 & "/" & $B$15-1) -> Δ2021/2020 | C21: =(C20/C6-1)*100 -> 0.1268406758 | D21: =(D20/D6-1)*100 -> 0.6065976051 | E21: 0.0347994677 | F21: 0 | G21: 0.7135188865 | H21: 1.105582558 | I21: 0 | J21: 0 | K21: 0.4036783984 | L21: 0 | N21: =(N20/N6-1)*100 -> 1.745103073 | O21: 2.07508031 | P21: 0 | Q21: 0 | S21: =(S20/S6-1)*100 -> 0 | T21: 0 | U21: 0.005878651618 | V21: 0.4605628799 | X21: =(X20/X6-1)*100 -> 0.4576767513 | Y21: 0.4945315833
B22: Posiciones 400 kV | C22: 188 | D22: 116 | E22: 55 | G22: 187 | I22: 15 | J22: 122 | K22: 247 | L22: 147 | N22: 124 | O22: 74 | P22: 8 | Q22: 109 | S22: 76 | T22: 30 | U22: 92 | V22: =SUM(C22:U22)+W22 -> 1590 | X22: =V22-Y22 -> 1590 | Y22: =F22+H22 -> 0
B23: Posiciones 220 kV | C23: 467 | D23: 227 | E23: 44 | F23: 125 | G23: 323 | H23: 81 | I23: 49 | J23: 145 | K23: 252 | L23: 605 | N23: 102 | O23: 234 | P23: 29 | Q23: 551 | S23: 44 | T23: 51 | U23: 149 | V23: =SUM(C23:U23)+W23 -> 3485 | W23: 7 | X23: =V23-Y23 -> 3279 | Y23: =F23+H23 -> 206
B24: Posiciones <220 kV | F24: 568 | G24: 0 | H24: 570 | L24: 3 | N24: 2 | O24: 1 | V24: 1144 | X24: =V24-Y24 -> 6 | Y24: =F24+H24 -> 1138
B25: Total posiciones | C25: =SUM(C22:C24) -> 655 | D25: 343 | E25: 99 | F25: =SUM(F22:F24) -> 693 | G25: =SUM(G22:G24) -> 510 | H25: 651 | I25: 64 | J25: 267 | K25: 499 | L25: 755 | M25: 0 | N25: 228 | O25: 309 | P25: 37 | Q25: 660 | R25: 0 | S25: 120 | T25: 81 | U25: 241 | V25: =SUM(V22:V24) -> 6219 | W25: 7 | X25: =SUM(X22:X24) -> 4875 | Y25: 1344
B26: =CONCATENATE("Δ" & $B$15 & "/" & $B$15-1) -> Δ2021/2020 | C26: =(C25/C11-1)*100 -> 2.503912363 | D26: =(D25/D11-1)*100 -> 2.388059701 | E26: 0 | F26: 1.315789474 | G26: 1.19047619 | H26: 4.830917874 | I26: 1.587301587 | J26: 2.298850575 | K26: 0.2008032129 | L26: 0.6666666667 | N26: =(N25/N11-1)*100 -> 14 | O26: 5.102040816 | P26: 0 | Q26: 0 | S26: =(S25/S11-1)*100 -> 1.694915254 | T26: 1.25 | U26: 2.553191489 | V26: 2.202136401 | W26: 0 | X26: 1.987447699 | Y26: 2.988505747
B27: Transformadores | C27: 15020 | D27: 5056 | E27: 1300 | F27: 3838 | G27: 8950 | H27: 3880 | I27: 2100 | J27: 1200 | K27: 6131 | L27: 11500 | M27: 0 | N27: 3025 | O27: 5700 | P27: 600 | Q27: 11100 | R27: 0 | S27: 3450 | T27: 1600 | U27: 5100 | V27: =SUM(C27:U27)+W27 -> 90450 | W27: 900 | X27: =V27-Y27 -> 82732 | Y27: =F27+H27 -> 7718
B28: =CONCATENATE("Δ" & $B$15 & "/" & $B$15-1) -> Δ2021/2020 | C28: =(C27/C13-1)*100 -> 0 | D28: =(D27/D13-1)*100 -> 0 | E28: 0 | F28: 0 | G28: 0 | H28: 6.887052342 | I28: 0 | J28: 0 | K28: 0 | L28: 0 | N28: =(N27/N13-1)*100 -> 8.035714286 | O28: 0 | P28: 0 | Q28: 0 | S28: =(S27/S13-1)*100 -> 0 | T28: 0 | U28: 0 | V28: 0.5279244235 | W28: 0 | X28: 0.2727041342 | Y28: 3.347616497
B29: 2022
B30: CCAA | C30: Andalucía | D30: Aragón | E30: Asturias | F30: Baleares | G30: C. Valenciana | H30: Canarias | I30: Cantabria | J30: Castilla-La Mancha | K30: Castilla y León | L30: Cataluña | M30: Ceuta | N30: Extremadura | O30: Galicia | P30: La Rioja | Q30: Madrid | R30: Melilla | S30: Murcia | T30: Navarra | U30: País Vasco | V30: TOTAL | W30: MÓVILES | X30: PENINSULAR | Y30: NO PENINSULAR
B31: km líneas 400 kV | C31: 3019.04959 | D31: 1448.037699 | E31: 539.0682043 | G31: 1074.437488 | I31: 240.5107043 | J31: 2612.814496 | K31: 4511.660432 | L31: 2237.079333 | N31: 2293.298447 | O31: 1346.726287 | P31: 114.9490595 | Q31: 992.6117087 | S31: 708.1121371 | T31: 175.9700702 | U31: 698.9563434 | V31: =SUM(C31:U31) -> 22013.282 | X31: =V31-Y31 -> 22013.282 | Y31: =F31+H31 -> 0
B32: km líneas 220 kV | C32: 3268.964495 | D32: 1904.367817 | E32: 432.5490202 | F32: 447.664 | G32: 1360.31226 | H32: 259.529 | I32: 332.2971061 | J32: 1528.303979 | K32: 3349.098074 | L32: 2546.688294 | N32: 909.1758674 | O32: 1388.335 | P32: 142.308 | Q32: 1186.993385 | S32: 123.86974 | T32: 318.8290202 | U32: 661.9799412 | V32: =SUM(C32:U32) -> 20161.265 | X32: =V32-Y32 -> 19454.072 | Y32: =F32+H32 -> 707.193
B33: km líneas <220 kV | F33: 1482.064 | G33: 0 | H33: 1349.667 | L33: 39.44 | N33: 8.05 | O33: 12.3 | V33: =SUM(C33:U33) -> 2891.521 | X33: 59.79 | Y33: 2831.731
B34: Total km líneas | C34: =SUM(C31:C33) -> 6288.014084 | D34: =SUM(D31:D33) -> 3352.405516 | E34: 971.6172245 | F34: 1929.728 | G34: 2434.749748 | H34: 1609.196 | I34: 572.8078104 | J34: 4141.118476 | K34: 7860.758506 | L34: 4823.207627 | M34: 0 | N34: 3210.524314 | O34: 2747.361287 | P34: 257.2570595 | Q34: 2179.605094 | R34: 0 | S34: 831.9818771 | T34: 494.7990904 | U34: 1360.936285 | V34: =SUM(V31:V33) -> 45066.068 | X34: =SUM(X31:X33) -> 41527.144 | Y34: 3538.924
B35: =CONCATENATE("Δ" & $B$29 & "/" & $B$29-1) -> Δ2022/2021 | C35: 0.2666036915 | D35: 0.5306457033 | E35: 0 | F35: 2.44402976 | G35: 1.090233197 | H35: 8.534318437 | I35: 0 | J35: 0 | K35: 0.3878701014 | L35: 0.105236572 | N35: 0 | O35: 0 | P35: 0 | Q35: 0 | S35: 0 | T35: 0 | U35: 0 | V35: =(V34/V20-1)*100 -> 0.6650863825 | X35: =(X34/X20-1)*100 -> 0.6443060015 | Y35: 0.9095743543
B36: Posiciones 400 kV | C36: 201 | D36: 120 | E36: 55 | G36: 189 | I36: 15 | J36: 127 | K36: 251 | L36: 147 | N36: 128 | O36: 74 | P36: 8 | Q36: 112 | S36: 78 | T36: 30 | U36: 92 | V36: =SUM(C36:U36)+W36 -> 1627 | X36: =V36-Y36 -> 1627 | Y36: =F36+H36 -> 0
B37: Posiciones 220 kV | C37: 474 | D37: 229 | E37: 44 | F37: 125 | G37: 332 | H37: 95 | I37: 52 | J37: 149 | K37: 254 | L37: 606 | N37: 105 | O37: 235 | P37: 29 | Q37: 551 | S37: 44 | T37: 51 | U37: 149 | V37: =SUM(C37:U37)+W37 -> 3531 | W37: 7 | X37: =V37-Y37 -> 3311 | Y37: =F37+H37 -> 220
B38: Posiciones <220 kV | F38: 576 | G38: 0 | H38: 588 | L38: 3 | N38: 2 | O38: 1 | V38: =SUM(C38:U38)+W38 -> 1170 | X38: =V38-Y38 -> 6 | Y38: =F38+H38 -> 1164
B39: Total posiciones | C39: =SUM(C36:C38) -> 675 | D39: =SUM(D36:D38) -> 349 | E39: 99 | F39: =SUM(F36:F38) -> 701 | G39: =SUM(G36:G38) -> 521 | H39: 683 | I39: 67 | J39: 276 | K39: 505 | L39: 756 | M39: 0 | N39: 235 | O39: 310 | P39: 37 | Q39: 663 | R39: 0 | S39: 122 | T39: 81 | U39: 241 | V39: =SUM(V36:V38) -> 6328 | W39: 7 | X39: =SUM(X36:X38) -> 4944 | Y39: 1384
B40: =CONCATENATE("Δ" & $B$29 & "/" & $B$29-1) -> Δ2022/2021 | C40: =(C39/C25-1)*100 -> 3.053435115 | D40: =(D39/D25-1)*100 -> 1.749271137 | E40: 0 | F40: 1.154401154 | G40: 2.156862745 | H40: 4.915514593 | I40: 4.6875 | J40: 3.370786517 | K40: 1.20240481 | L40: 0.1324503311 | N40: =(N39/N25-1)*100 -> 3.070175439 | O40: 0.3236245955 | P40: 0 | Q40: 0.4545454545 | S40: =(S39/S25-1)*100 -> 1.666666667 | T40: 0 | U40: 0 | V40: 1.752693359 | W40: 0 | X40: 0 | Y40: 0
B41: Transformadores | C41: 15020 | D41: 5056 | E41: 1300 | F41: 3838 | G41: 8950 | H41: 4005 | I41: 2100 | J41: 1800 | K41: 6131 | L41: 11500 | M41: 0 | N41: 3025 | O41: 5700 | P41: 600 | Q41: 11100 | R41: 0 | S41: 3450 | T41: 1600 | U41: 5100 | V41: =SUM(C41:U41)+W41 -> 91175 | W41: 900 | X41: =V41-Y41 -> 83332 | Y41: =F41+H41 -> 7843
B42: =CONCATENATE("Δ" & $B$29 & "/" & $B$29-1) -> Δ2022/2021 | C42: =(C41/C27-1)*100 -> 0 | D42: =(D41/D27-1)*100 -> 0 | E42: 0 | F42: 0 | G42: 0 | H42: 3.221649485 | I42: 0 | J42: 50 | K42: 0 | L42: 0 | N42: =(N41/N27-1)*100 -> 0 | O42: 0 | P42: 0 | Q42: 0 | S42: =(S41/S27-1)*100 -> 0 | T42: 0 | U42: 0 | V42: 0.8015478165 | W42: 0 | X42: 0.7252332834 | Y42: 1.619590568
B43: 2023 | V43: =V39-V25 -> 109
B44: CCAA | C44: Andalucía | D44: Aragón | E44: Asturias | F44: Baleares | G44: C. Valenciana | H44: Canarias | I44: Cantabria | J44: Castilla-La Mancha | K44: Castilla y León | L44: Cataluña | M44: Ceuta | N44: Extremadura | O44: Galicia | P44: La Rioja | Q44: Madrid | R44: Melilla | S44: Murcia | T44: Navarra | U44: País Vasco | V44: TOTAL | W44: MÓVILES | X44: PENINSULAR | Y44: NO PENINSULAR
B45: km líneas 400 kV | C45: 3021.04359 | D45: 1448.037699 | E45: 539.0682043 | G45: 1114.437488 | I45: 240.5107043 | J45: 2612.814496 | K45: 4511.660432 | L45: 2237.079333 | N45: 2293.298447 | O45: 1346.726287 | P45: 114.9490595 | Q45: 994.4537087 | S45: 708.1121371 | T45: 175.9700702 | U45: 698.9563434 | V45: =SUM(C45:U45) -> 22057.118 | X45: =V45-Y45 -> 22057.118 | Y45: =F45+H45 -> 0
B46: km líneas 220 kV | C46: 3276.009495 | D46: 1904.367817 | E46: 399.7490202 | F46: 447.664 | G46: 1360.31226 | H46: 265.223 | I46: 332.4041061 | J46: 1528.303979 | K46: 3349.098074 | L46: 2561.518294 | N46: 909.1758674 | O46: 1389.285 | P46: 142.308 | Q46: 1186.993385 | S46: 123.86974 | T46: 318.8290202 | U46: 661.9799412 | V46: =SUM(C46:U46) -> 20157.091 | X46: =V46-Y46 -> 19444.204 | Y46: =F46+H46 -> 712.887
B47: km líneas <220 kV | F47: 1556.769 | H47: 1356.507 | L47: 39.44 | N47: 8.05 | O47: 12.3 | V47: 2973.066 | X47: 59.79 | Y47: 2913.276
B48: Total km líneas | C48: =SUM(C45:C47) -> 6297.053084 | D48: 3352.405516 | E48: 938.8172245 | F48: 2004.433 | G48: 2474.749748 | H48: 1621.73 | I48: 572.9148104 | J48: 4141.118476 | K48: 7860.758506 | L48: 4838.037627 | M48: 0 | N48: 3210.524314 | O48: 2748.311287 | P48: 257.2570595 | Q48: 2181.447094 | R48: 0 | S48: 831.9818771 | T48: 494.7990904 | U48: 1360.936285 | V48: =SUM(V45:V47) -> 45187.275 | X48: =SUM(X45:X47) -> 41561.112 | Y48: 3626.163
B49: =CONCATENATE("Δ" & $B$43 & "/" & $B$43-1) -> Δ2023/2022 | C49: =(C48/C34-1)*100 -> 0.143749678 | D49: =(D48/D34-1)*100 -> 0 | E49: -3.375814999 | F49: 3.871270977 | G49: 1.642879315 | H49: 0.7788982821 | I49: 0.01867991289 | J49: 0 | K49: 0 | L49: 0.3074717314 | N49: =(N48/N34-1)*100 -> 0 | O49: 0.03457863385 | P49: 0 | Q49: 0.08451072192 | S49: =(S48/S34-1)*100 -> 0 | T49: 0 | U49: 0 | V49: 0.3352935099 | X49: 0.3386428746 | Y49: 0.2921503343
B50: Posiciones 400 kV | C50: 220 | D50: 132 | E50: 55 | G50: 200 | I50: 15 | J50: 130 | K50: 257 | L50: 149 | N50: 128 | O50: 76 | P50: 8 | Q50: 118 | S50: 85 | T50: 32 | U50: 92 | V50: =SUM(C50:U50)+W50 -> 1697 | X50: =V50-Y50 -> 1697 | Y50: =F50+H50 -> 0
B51: Posiciones 220 kV | C51: 484 | D51: 231 | E51: 44 | F51: 129 | G51: 333 | H51: 95 | I51: 55 | J51: 149 | K51: 259 | L51: 612 | N51: 106 | O51: 241 | P51: 30 | Q51: 557 | S51: 45 | T51: 55 | U51: 150 | V51: =SUM(C51:U51)+W51 -> 3582 | W51: 7 | X51: =V51-Y51 -> 3358 | Y51: =F51+H51 -> 224
B52: Posiciones <220 kV | F52: 588 | H52: 598 | L52: 3 | N52: 2 | O52: 1 | V52: =SUM(C52:U52)+W52 -> 1192 | X52: =V52-Y52 -> 6 | Y52: =F52+H52 -> 1186
B53: Total posiciones | C53: =SUM(C50:C52) -> 704 | D53: =SUM(D50:D52) -> 363 | E53: 99 | F53: 717 | G53: 533 | H53: 693 | I53: 70 | J53: 279 | K53: 516 | L53: 764 | M53: 0 | N53: 236 | O53: 318 | P53: 38 | Q53: 675 | R53: 0 | S53: 130 | T53: 87 | U53: 242 | V53: =SUM(V50:V52) -> 6471 | W53: =SUM(W50:W52) -> 7 | X53: =SUM(X50:X52) -> 5061 | Y53: 1410
B54: =CONCATENATE("Δ" & $B$43 & "/" & $B$43-1) -> Δ2023/2022 | C54: =(C53/C39-1)*100 -> 4.296296296 | D54: =(D53/D39-1)*100 -> 4.011461318 | E54: 0 | F54: 2.282453638 | G54: 2.303262956 | H54: 1.464128843 | I54: 4.47761194 | J54: 1.086956522 | K54: 2.178217822 | L54: 1.058201058 | N54: =(N53/N39-1)*100 -> 0.4255319149 | O54: 2.580645161 | P54: 2.702702703 | Q54: 1.809954751 | S54: =(S53/S39-1)*100 -> 6.557377049 | T54: 7.407407407 | U54: 0.4149377593 | V54: 2.259797724 | X54: 2.366504854 | Y54: 1.878612717
B55: Transformadores | C55: 15020 | D55: 5056 | E55: 1300 | F55: 3838 | G55: 8950 | H55: 4165 | I55: 2100 | J55: 1800 | K55: 6131 | L55: 11500 | N55: 3025 | O55: 5700 | P55: 600 | Q55: 11700 | S55: 3450 | T55: 1600 | U55: 5100 | V55: =SUM(C55:U55)+W55 -> 91935 | W55: 900 | X55: =V55-Y55 -> 83932 | Y55: =F55+H55 -> 8003
B56: =CONCATENATE("Δ" & $B$43 & "/" & $B$43-1) -> Δ2023/2022 | C56: =(C55/C41-1)*100 -> 0 | D56: =(D55/D41-1)*100 -> 0 | E56: 0 | F56: 0 | G56: 0 | H56: 3.995006242 | I56: 0 | J56: 0 | K56: 0 | L56: 0 | N56: =(N55/N41-1)*100 -> 0 | O56: 0 | P56: 0 | Q56: 5.405405405 | S56: =(S55/S41-1)*100 -> 0 | T56: 0 | U56: 0 | V56: 0.8335618316 | W56: 0 | X56: 0.7200115202 | Y56: 2.040035701
B57: 2024 | C57: =C53-C39 -> 29 | D57: =D53-D39 -> 14 | E57: 0 | F57: 16 | G57: 12 | H57: 10 | I57: 3 | J57: 3 | K57: 11 | L57: 8 | M57: 0 | N57: 1 | O57: 8 | P57: 1 | Q57: 12 | R57: 0 | S57: 8 | T57: 6 | U57: 1 | V57: 143
B58: CCAA | C58: Andalucía | D58: Aragón | E58: Asturias | F58: Baleares | G58: C. Valenciana | H58: Canarias | I58: Cantabria | J58: Castilla-La Mancha | K58: Castilla y León | L58: Cataluña | M58: Ceuta | N58: Extremadura | O58: Galicia | P58: La Rioja | Q58: Madrid | R58: Melilla | S58: Murcia | T58: Navarra | U58: País Vasco | V58: TOTAL | W58: MÓVILES | X58: PENINSULAR | Y58: NO PENINSULAR
B59: km líneas 400 kV | C59: 3021.04359 | D59: 1450.079699 | E59: 539.0682043 | G59: 1114.437488 | I59: 240.5107043 | J59: 2612.814496 | K59: 4511.660432 | L59: 2237.079333 | N59: 2297.808447 | O59: 1351.042287 | P59: 114.9490595 | Q59: 994.4537087 | S59: 708.1121371 | T59: 175.9700702 | U59: 845.8903434 | V59: =SUM(C59:U59) -> 22214.92 | X59: =V59-Y59 -> 22214.92
B60: km líneas 220 kV | C60: 3315.119495 | D60: 1904.944817 | E60: 399.7490202 | F60: 447.739 | G60: 1360.33626 | H60: 291.907 | I60: 332.4041061 | J60: 1528.303979 | K60: 3349.098074 | L60: 2602.545294 | N60: 968.4108874 | O60: 1432.286 | P60: 142.308 | Q60: 1189.657385 | S60: 123.86974 | T60: 318.8290202 | U60: 661.9799412 | V60: =SUM(C60:U60) -> 20369.48802 | X60: =V60-Y60 -> 19629.84202 | Y60: =F60+H60 -> 739.646
B61: km líneas <220 kV | F61: 1566.344 | H61: 1458.929 | L61: 39.44 | N61: 8.05 | O61: 12.3 | V61: =SUM(C61:U61) -> 3085.063 | X61: 59.79 | Y61: 3025.273
B62: Total km líneas | C62: =SUM(C59:C61) -> 6336.163084 | D62: 3355.024516 | E62: 938.8172245 | F62: 2014.083 | G62: 2474.773748 | H62: 1750.836 | I62: 572.9148104 | J62: 4141.118476 | K62: 7860.758506 | L62: 4879.064627 | M62: 0 | N62: 3274.269334 | O62: 2795.628287 | P62: 257.2570595 | Q62: 2184.111094 | R62: 0 | S62: 831.9818771 | T62: 494.7990904 | U62: 1507.870285 | V62: 45669.47102 | X62: =SUM(X59:X61) -> 41904.55202 | Y62: 3764.919
B63: =CONCATENATE("Δ" & $B$57 & "/" & $B$57-1) -> Δ2024/2023 | C63: =(C62/C48-1)*100 -> 0.6210841718 | D63: =(D62/D48-1)*100 -> 0.07812300712 | E63: 0 | F63: 0.481432904 | G63: 0.0009697950274 | H63: 7.961004606 | I63: 0 | J63: 0 | K63: 0 | L63: 0.8480091136 | N63: =(N62/N48-1)*100 -> 1.985501861 | O63: 1.721675424 | P63: 0 | Q63: 0.1221207705 | S63: =(S62/S48-1)*100 -> 0 | T63: 0 | U63: 10.79653777 | V63: 1.067105773 | X63: =(X62/X48-1)*100 -> 0.826349449 | Y63: 3.82652407
B64: Posiciones 400 kV | C64: 227 | D64: 145 | E64: 55 | G64: 206 | I64: 15 | J64: 134 | K64: 268 | L64: 155 | N64: 143 | O64: 91 | P64: 9 | Q64: 124 | S64: 86 | T64: 32 | U64: 92 | V64: =SUM(C64:U64)+W64 -> 1782 | X64: =V64-F64-H64-M64-R64 -> 1782
B65: Posiciones 220 kV | C65: 503 | D65: 244 | E65: 44 | F65: 129 | G65: 335 | H65: 101 | I65: 58 | J65: 156 | K65: 268 | L65: 615 | N65: 107 | O65: 250 | P65: 31 | Q65: 561 | S65: 46 | T65: 55 | U65: 150 | V65: =SUM(C65:U65)+W65 -> 3660 | W65: 7 | X65: =V65-F65-H65-M65-R65 -> 3430 | Y65: =F65+H65+M65+R65 -> 230
B66: Posiciones <220 kV | F66: 599 | H66: 620 | L66: 3 | N66: 2 | O66: 1 | V66: 1225 | X66: =V66-F66-H66-M66-R66 -> 6 | Y66: =F66+H66+M66+R66 -> 1219
B67: Total posiciones | C67: =SUM(C64:C66) -> 730 | D67: =SUM(D64:D66) -> 389 | E67: 99 | F67: 728 | G67: 541 | H67: 721 | I67: 73 | J67: 290 | K67: 536 | L67: 773 | M67: 0 | N67: 252 | O67: 342 | P67: 40 | Q67: 685 | R67: 0 | S67: 132 | T67: 87 | U67: 242 | V67: =SUM(V64:V66) -> 6667 | W67: =SUM(W64:W66) -> 7 | X67: =SUM(X64:X66) -> 5218 | Y67: 1449
B68: =CONCATENATE("Δ" & $B$57 & "/" & $B$57-1) -> Δ2024/2023 | C68: =(C67/C53-1)*100 -> 3.693181818 | D68: =(D67/D53-1)*100 -> 7.162534435 | E68: 0 | F68: 1.534170153 | G68: 1.500938086 | H68: 4.04040404 | I68: 4.285714286 | J68: 3.94265233 | K68: 3.875968992 | L68: 1.178010471 | N68: =(N67/N53-1)*100 -> 6.779661017 | O68: 7.547169811 | P68: 5.263157895 | Q68: 1.481481481 | S68: =(S67/S53-1)*100 -> 1.538461538 | T68: 0 | U68: 0 | V68: 3.028898161 | X68: 3.102153725 | Y68: 2.765957447
B69: Transformadores | C69: 15020 | D69: 5656 | E69: 1300 | F69: 3998 | G69: 8950 | H69: 4540 | I69: 2100 | J69: 1800 | K69: 6131 | L69: 12000 | M69: 0 | N69: 3025 | O69: 6300 | P69: 600 | Q69: 11900 | R69: 0 | S69: 3450 | T69: 1600 | U69: 5300 | V69: =SUM(C69:U69)+W69 -> 94570 | W69: 900 | X69: =V69-F69-H69-M69-R69 -> 86032 | Y69: =F69+H69+M69+R69 -> 8538
B70: =CONCATENATE("Δ" & $B$57 & "/" & $B$57-1) -> Δ2024/2023 | C70: =(C69/C55-1)*100 -> 0 | D70: =(D69/D55-1)*100 -> 11.86708861 | E70: 0 | F70: 4.168837936 | G70: 0 | H70: 9.003601441 | I70: 0 | J70: 0 | K70: 0 | L70: 4.347826087 | N70: =(N69/N55-1)*100 -> 0 | O70: 10.52631579 | P70: 0 | Q70: 1.709401709 | S70: =(S69/S55-1)*100 -> 0 | T70: 0 | U70: 3.921568627 | V70: 2.866155436 | W70: 0 | X70: 2.502025449 | Y70: 6.684993128
B71: 2025
B72: CCAA | C72: Andalucía | D72: Aragón | E72: Asturias | F72: Baleares | G72: C. Valenciana | H72: Canarias | I72: Cantabria | J72: Castilla-La Mancha | K72: Castilla y León | L72: Cataluña | M72: Ceuta | N72: Extremadura | O72: Galicia | P72: La Rioja | Q72: Madrid | R72: Melilla | S72: Murcia | T72: Navarra | U72: País Vasco | V72: TOTAL | W72: MÓVILES | X72: PENINSULAR | Y72: NO PENINSULAR
B73: km líneas 400 kV | C73: 3031.00159 | D73: 1450.079699 | E73: 540.3932043 | G73: 1114.437488 | I73: 240.5107043 | J73: 2612.814496 | K73: 4511.660432 | L73: 2237.531333 | N73: 2304.682447 | O73: 1432.962287 | P73: 114.9490595 | Q73: 994.4537087 | S73: 709.0781371 | T73: 175.9700702 | U73: 845.8903434 | V73: =SUM(C73:U73) -> 22316.415 | X73: =V73-Y73 -> 22316.415
B74: km líneas 220 kV | C74: 3355.851495 | D74: 1904.944817 | E74: 399.7490202 | F74: 448.212 | G74: 1362.92326 | H74: 293.752 | I74: 333.2391061 | J74: 1528.721979 | K74: 3349.264074 | L74: 2671.410294 | N74: 968.4108874 | O74: 1432.476 | P74: 142.308 | Q74: 1192.097385 | S74: 123.86974 | T74: 318.8290202 | U74: 661.9799412 | V74: =SUM(C74:U74) -> 20488.03902 | X74: =V74-Y74 -> 19746.07502 | Y74: =F74+H74 -> 741.964
B75: km líneas <220 kV | C75: 70.095 | F75: 1567.67 | H75: 1583.871 | L75: 39.44 | M75: 69.32 | N75: 8.05 | O75: 12.3 | V75: =SUM(C75:U75) -> 3350.746 | X75: 199.205 | Y75: 3151.541
B76: Total km líneas | C76: =SUM(C73:C75) -> 6456.948084 | D76: 3355.024516 | E76: 940.1422245 | F76: 2015.882 | G76: 2477.360748 | H76: 1877.623 | I76: 573.7498104 | J76: 4141.536476 | K76: 7860.924506 | L76: 4948.381627 | M76: 69.32 | N76: 3281.143334 | O76: 2877.738287 | P76: 257.2570595 | Q76: 2186.551094 | R76: 0 | S76: 832.9478771 | T76: 494.7990904 | U76: 1507.870285 | V76: 46155.20002 | X76: =SUM(X73:X75) -> 42261.69502 | Y76: =SUM(Y73:Y75) -> 3893.505
B77: =CONCATENATE("Δ" & $B$71 & "/" & $B$71-1) -> Δ2025/2024 | C77: =(C76/C62-1)*100 -> 1.906279848 | D77: =(D76/D62-1)*100 -> 0 | E77: 0.141135033 | F77: 0.08932104586 | G77: 0.1045348086 | H77: 7.241512055 | I77: 0.1457459268 | J77: 0.01009389136 | K77: 0.002111755499 | L77: 1.420702641 | N77: 0.2099399682 | O77: 2.937085748 | P77: 0 | Q77: 0.111715929 | S77: 0.1161082983 | T77: 0 | U77: 0 | V77: =(V76/V62-1)*100 -> 1.063574833 | X77: =(X76/X62-1)*100 -> 0.8522773369 | Y77: 3.415372283
B78: Posiciones 400 kV | C78: 241 | D78: 152 | E78: 56 | G78: 212 | I78: 16 | J78: 139 | K78: 273 | L78: 155 | N78: 158 | O78: 91 | P78: 9 | Q78: 129 | S78: 90 | T78: 34 | U78: 93 | V78: =SUM(C78:U78)+W78 -> 1848 | X78: =V78-F78-H78-M78-R78 -> 1848
B79: Posiciones 220 kV | C79: 516 | D79: 247 | E79: 44 | F79: 132 | G79: 345 | H79: 114 | I79: 58 | J79: 167 | K79: 273 | L79: 626 | N79: 107 | O79: 252 | P79: 32 | Q79: 571 | S79: 46 | T79: 56 | U79: 153 | V79: =SUM(C79:U79)+W79 -> 3746 | W79: 7 | X79: =V79-F79-H79-M79-R79 -> 3500 | Y79: =F79+H79+M79+R79 -> 246
B80: Posiciones <220 kV | C80: 12 | F80: 609 | H80: 650 | L80: 3 | M80: 8 | N80: 2 | O80: 1 | P80: 0 | V80: 1285 | X80: =V80-F80-H80-M80-R80 -> 18 | Y80: =F80+H80+M80+R80 -> 1267
B81: Total posiciones | C81: =SUM(C78:C80) -> 769 | D81: =SUM(D78:D80) -> 399 | E81: 100 | F81: 741 | G81: 557 | H81: 764 | I81: 74 | J81: 306 | K81: 546 | L81: 784 | M81: 8 | N81: 267 | O81: 344 | P81: 41 | Q81: 700 | R81: 0 | S81: 136 | T81: 90 | U81: 246 | V81: =SUM(V78:V80) -> 6879 | W81: =SUM(W78:W80) -> 7 | X81: =SUM(X78:X80) -> 5366 | Y81: 1513
B82: =CONCATENATE("Δ" & $B$71 & "/" & $B$71-1) -> Δ2025/2024 | C82: =(C81/C67-1)*100 -> 5.342465753 | D82: =(D81/D67-1)*100 -> 2.570694087 | E82: 1.01010101 | F82: 1.785714286 | G82: 2.957486137 | H82: 5.963938974 | I82: 1.369863014 | J82: 5.517241379 | K82: 1.865671642 | L82: 1.423027167 | N82: 5.952380952 | O82: 0.5847953216 | P82: 2.5 | Q82: 2.189781022 | S82: 3.03030303 | T82: 3.448275862 | U82: 1.652892562 | V82: =(V81/V67-1)*100 -> 3.179841008 | W82: 0 | X82: 2.836335761 | Y82: 4.416839199
B83: Transformadores | C83: 15270 | D83: 6256 | E83: 1300 | F83: 4478 | G83: 8950 | H83: 4665 | I83: 2100 | J83: 1800 | K83: 6131 | L83: 12000 | N83: 3025 | O83: 6300 | P83: 600 | Q83: 11900 | S83: 3450 | T83: 1600 | U83: 5300 | V83: =SUM(C83:U83)+W83 -> 96025 | W83: 900 | X83: =V83-F83-H83-M83-R83 -> 86882 | Y83: =F83+H83+M83+R83 -> 9143
B84: =CONCATENATE("Δ" & $B$71 & "/" & $B$71-1) -> Δ2025/2024 | C84: =(C83/C69-1)*100 -> 1.664447403 | D84: =(D83/D69-1)*100 -> 10.60820368 | E84: 0 | F84: 12.006003 | G84: 0 | H84: 2.753303965 | I84: 0 | J84: 0 | K84: 0 | L84: 0 | N84: 0 | O84: 0 | P84: 0 | Q84: 0 | S84: 0 | T84: 0 | U84: 0 | V84: =(V83/V69-1)*100 -> 1.538542878 | W84: 0 | X84: 0.9880044635 | Y84: 7.085968611

Sheet EVOLUCION_RdT (hidden)
B2: evolución líneas | C2: Andalucía | D2: Aragón | E2: Asturias | F2: Baleares | G2: C. Valenciana | H2: Canarias | I2: Cantabria | J2: Castilla-La Mancha | K2: Castilla y León | L2: Cataluña | M2: Ceuta | N2: Extremadura | O2: Galicia | P2: La Rioja | Q2: Madrid | R2: Melilla | S2: Murcia | T2: Navarra | U2: País Vasco | V2: TOTAL | W2: MÓVILES | X2: Resto nacional
A3: 2020 | B3: líneas | C3: =datos_RdT!C6 -> 6032.765084 | D3: =datos_RdT!D6 -> 3332.192516 | E3: =datos_RdT!E6 -> 971.2792245 | F3: =datos_RdT!F6 -> 1928.78 | G3: =datos_RdT!G6 -> 2407.644748 | H3: =datos_RdT!H6 -> 1560.987 | I3: =datos_RdT!I6 -> 564.6318104 | J3: =datos_RdT!J6 -> 4141.118476 | K3: =datos_RdT!K6 -> 7829.004506 | L3: =datos_RdT!L6 -> 4823.207627 | N3: =datos_RdT!N6 -> 3155.458314 | O3: =datos_RdT!O6 -> 2691.510287 | P3: =datos_RdT!P6 -> 257.2570595 | Q3: =datos_RdT!Q6 -> 2179.605094 | S3: =datos_RdT!S6 -> 831.9818771 | T3: =datos_RdT!T6 -> 494.7990904 | U3: =datos_RdT!U6 -> 1360.856285 | V3: =SUM(C3:U3) -> 44563.079 | X3: =V3-C3 -> 38530.31392
A4: 2020 | B4: posiciones | C4: =datos_RdT!C11 -> 639 | D4: =datos_RdT!D11 -> 335 | E4: =datos_RdT!E11 -> 99 | F4: =datos_RdT!F11 -> 684 | G4: =datos_RdT!G11 -> 504 | H4: =datos_RdT!H11 -> 621 | I4: =datos_RdT!I11 -> 63 | J4: =datos_RdT!J11 -> 261 | K4: =datos_RdT!K11 -> 498 | L4: =datos_RdT!L11 -> 750 | N4: =datos_RdT!N11 -> 200 | O4: =datos_RdT!O11 -> 294 | P4: =datos_RdT!P11 -> 37 | Q4: =datos_RdT!Q11 -> 660 | S4: =datos_RdT!S11 -> 118 | T4: =datos_RdT!T11 -> 80 | U4: =datos_RdT!U11 -> 235 | V4: =SUM(C4:U4)+W4 -> 6085 | W4: =datos_RdT!W11 -> 7 | X4: =V4-C4 -> 5446
A5: 2020 | B5: transformadores | C5: =datos_RdT!C13 -> 15020 | D5: =datos_RdT!D13 -> 5056 | E5: =datos_RdT!E13 -> 1300 | F5: =datos_RdT!F13 -> 3838 | G5: =datos_RdT!G13 -> 8950 | H5: =datos_RdT!H13 -> 3630 | I5: =datos_RdT!I13 -> 2100 | J5: =datos_RdT!J13 -> 1200 | K5: =datos_RdT!K13 -> 6131 | L5: =datos_RdT!L13 -> 11500 | N5: =datos_RdT!N13 -> 2800 | O5: =datos_RdT!O13 -> 5700 | P5: =datos_RdT!P13 -> 600 | Q5: =datos_RdT!Q13 -> 11100 | S5: =datos_RdT!S13 -> 3450 | T5: =datos_RdT!T13 -> 1600 | U5: =datos_RdT!U13 -> 5100 | V5: =SUM(C5:U5)+W5 -> 89975 | W5: =datos_RdT!W13 -> 900 | X5: =V5-C5 -> 74955
A6: 2020 | B6: líneas | C6: =datos_RdT!C7/100 -> 3.680040024e-05 | D6: =datos_RdT!D7/100 -> 0.002585449889 | E6: =datos_RdT!E7/100 -> 0.01068247527 | F6: =datos_RdT!F7/100 -> 0.0296046433 | G6: =datos_RdT!G7/100 -> 0 | H6: =datos_RdT!H7/100 -> 0.00761364634 | I6: =datos_RdT!I7/100 -> 0 | J6: =datos_RdT!J7/100 -> 0.0009087924148 | K6: =datos_RdT!K7/100 -> 0 | L6: =datos_RdT!L7/100 -> 0.002446254303 | N6: =datos_RdT!N7/100 -> 0.003172808394 | O6: =datos_RdT!O7/100 -> 0.001766437057 | P6: =datos_RdT!P7/100 -> 0 | Q6: =datos_RdT!Q7/100 -> 2.569338775e-05 | S6: =datos_RdT!S7/100 -> 0 | T6: =datos_RdT!T7/100 -> 0 | U6: =datos_RdT!U7/100 -> 0 | V6: =datos_RdT!V7/100 -> 0.002624440135
A7: 2020 | B7: posiciones | C7: =datos_RdT!C12/100 -> -0.01540832049 | D7: =datos_RdT!D12/100 -> -0.002976190476 | E7: =datos_RdT!E12/100 -> 0.05319148936 | F7: =datos_RdT!F12/100 -> -0.01013024602 | G7: =datos_RdT!G12/100 -> -0.007874015748 | H7: =datos_RdT!H12/100 -> 0.0725388601 | I7: =datos_RdT!I12/100 -> -0.03076923077 | J7: =datos_RdT!J12/100 -> 0.01556420233 | K7: =datos_RdT!K12/100 -> -0.01386138614 | L7: =datos_RdT!L12/100 -> -0.02470741222 | N7: =datos_RdT!N12/100 -> 0.0152284264 | O7: =datos_RdT!O12/100 -> -0.03606557377 | P7: =datos_RdT!P12/100 -> -0.02631578947 | Q7: =datos_RdT!Q12/100 -> 0.03773584906 | S7: =datos_RdT!S12/100 -> -0.008403361345 | T7: =datos_RdT!T12/100 -> 0.02564102564 | U7: =datos_RdT!U12/100 -> 0.008583690987 | V7: =datos_RdT!V12/100 -> 0.003132212331
A8: 2020 | B8: transformadores | C8: =datos_RdT!C14/100 -> 0 | D8: =datos_RdT!D14/100 -> 0 | E8: =datos_RdT!E14/100 -> 0 | F8: =datos_RdT!F14/100 -> 0 | G8: =datos_RdT!G14/100 -> 0 | H8: =datos_RdT!H14/100 -> 0.04610951009 | I8: =datos_RdT!I14/100 -> 0 | J8: =datos_RdT!J14/100 -> 0 | K8: =datos_RdT!K14/100 -> 0 | L8: =datos_RdT!L14/100 -> 0 | N8: =datos_RdT!N14/100 -> 0 | O8: =datos_RdT!O14/100 -> 0 | P8: =datos_RdT!P14/100 -> 0 | Q8: =datos_RdT!Q14/100 -> 0 | S8: =datos_RdT!S14/100 -> 0 | T8: =datos_RdT!T14/100 -> 0 | U8: =datos_RdT!U14/100 -> 0 | V8: =datos_RdT!V14/100 -> 0.001781439626
A9: 2021 | B9: líneas | C9: =datos_RdT!C20 -> 6040.417084 | D9: =datos_RdT!D20 -> 3352.405516 | E9: =datos_RdT!E20 -> 971.6172245 | F9: =datos_RdT!F20 -> 1928.78 | G9: =datos_RdT!G20 -> 2424.823748 | H9: =datos_RdT!H20 -> 1578.245 | I9: =datos_RdT!I20 -> 564.6318104 | J9: =datos_RdT!J20 -> 4141.118476 | K9: =datos_RdT!K20 -> 7860.608506 | L9: =datos_RdT!L20 -> 4823.207627 | N9: =datos_RdT!N20 -> 3210.524314 | O9: =datos_RdT!O20 -> 2747.361287 | P9: =datos_RdT!P20 -> 257.2570595 | Q9: =datos_RdT!Q20 -> 2179.605094 | S9: =datos_RdT!S20 -> 831.9818771 | T9: =datos_RdT!T20 -> 494.7990904 | U9: =datos_RdT!U20 -> 1360.936285 | V9: =SUM(C9:U9) -> 44768.32 | X9: =V9-C9 -> 38727.90292
A10: 2021 | B10: posiciones | C10: =datos_RdT!C25 -> 655 | D10: =datos_RdT!D25 -> 343 | E10: =datos_RdT!E25 -> 99 | F10: =datos_RdT!F25 -> 693 | G10: =datos_RdT!G25 -> 510 | H10: =datos_RdT!H25 -> 651 | I10: =datos_RdT!I25 -> 64 | J10: =datos_RdT!J25 -> 267 | K10: =datos_RdT!K25 -> 499 | L10: =datos_RdT!L25 -> 755 | N10: =datos_RdT!N25 -> 228 | O10: =datos_RdT!O25 -> 309 | P10: =datos_RdT!P25 -> 37 | Q10: =datos_RdT!Q25 -> 660 | S10: =datos_RdT!S25 -> 120 | T10: =datos_RdT!T25 -> 81 | U10: =datos_RdT!U25 -> 241 | V10: =SUM(C10:U10)+W10 -> 6219 | W10: =datos_RdT!W25 -> 7 | X10: =V10-C10 -> 5564
A11: 2021 | B11: transformadores | C11: =datos_RdT!C27 -> 15020 | D11: =datos_RdT!D27 -> 5056 | E11: =datos_RdT!E27 -> 1300 | F11: =datos_RdT!F27 -> 3838 | G11: =datos_RdT!G27 -> 8950 | H11: =datos_RdT!H27 -> 3880 | I11: =datos_RdT!I27 -> 2100 | J11: =datos_RdT!J27 -> 1200 | K11: =datos_RdT!K27 -> 6131 | L11: =datos_RdT!L27 -> 11500 | N11: =datos_RdT!N27 -> 3025 | O11: =datos_RdT!O27 -> 5700 | P11: =datos_RdT!P27 -> 600 | Q11: =datos_RdT!Q27 -> 11100 | S11: =datos_RdT!S27 -> 3450 | T11: =datos_RdT!T27 -> 1600 | U11: =datos_RdT!U27 -> 5100 | V11: =SUM(C11:U11)+W11 -> 90450 | W11: =datos_RdT!W27 -> 900 | X11: =V11-C11 -> 75430
A12: 2021 | B12: líneas | C12: =(C9/C3-1) -> 0.001268406758 | D12: =(D9/D3-1) -> 0.006065976051 | E12: =(E9/E3-1) -> 0.000347994677 | F12: =(F9/F3-1) -> 0 | G12: 0.007135188865 | H12: 0.01105582558 | I12: 0 | J12: 0 | K12: 0.004036783984 | L12: 0 | N12: 0.01745103073 | O12: 0.0207508031 | P12: 0 | Q12: 0 | S12: 0 | T12: 0 | U12: 5.878651618e-05 | V12: 0.004605628799
A13: 2021 | B13: posiciones | C13: =(C10/C4-1) -> 0.02503912363 | D13: =(D10/D4-1) -> 0.02388059701 | E13: 0 | F13: 0.01315789474 | G13: 0.0119047619 | H13: 0.04830917874 | I13: 0.01587301587 | J13: 0.02298850575 | K13: 0.002008032129 | L13: 0.006666666667 | N13: 0.14 | O13: 0.05102040816 | P13: 0 | Q13: 0 | S13: 0.01694915254 | T13: 0.0125 | U13: 0.02553191489 | V13: 0.02202136401
A14: 2021 | B14: transformadores | C14: =(C11/C5-1) -> 0 | D14: =(D11/D5-1) -> 0 | E14: 0 | F14: 0 | G14: 0 | H14: 0.06887052342 | I14: 0 | K14: 0 | L14: 0 | N14: 0.08035714286 | O14: 0 | Q14: 0 | S14: 0 | T14: 0 | U14: 0 | V14: 0.005279244235
A15: 2022 | B15: líneas | C15: =datos_RdT!C34 -> 6288.014084 | D15: =datos_RdT!D34 -> 3352.405516 | E15: =datos_RdT!E34 -> 971.6172245 | F15: =datos_RdT!F34 -> 1929.728 | G15: =datos_RdT!G34 -> 2434.749748 | H15: =datos_RdT!H34 -> 1609.196 | I15: =datos_RdT!I34 -> 572.8078104 | J15: =datos_RdT!J34 -> 4141.118476 | K15: =datos_RdT!K34 -> 7860.758506 | L15: =datos_RdT!L34 -> 4823.207627 | N15: =datos_RdT!N34 -> 3210.524314 | O15: =datos_RdT!O34 -> 2747.361287 | P15: =datos_RdT!P34 -> 257.2570595 | Q15: =datos_RdT!Q34 -> 2179.605094 | S15: =datos_RdT!S34 -> 831.9818771 | T15: =datos_RdT!T34 -> 494.7990904 | U15: =datos_RdT!U34 -> 1360.936285 | V15: =SUM(C15:U15) -> 45066.068 | X15: =V15-C15 -> 38778.05392
A16: 2022 | B16: posiciones | C16: =datos_RdT!C39 -> 675 | D16: =datos_RdT!D39 -> 349 | E16: =datos_RdT!E39 -> 99 | F16: =datos_RdT!F39 -> 701 | G16: =datos_RdT!G39 -> 521 | H16: =datos_RdT!H39 -> 683 | I16: =datos_RdT!I39 -> 67 | J16: =datos_RdT!J39 -> 276 | K16: =datos_RdT!K39 -> 505 | L16: =datos_RdT!L39 -> 756 | N16: =datos_RdT!N39 -> 235 | O16: =datos_RdT!O39 -> 310 | P16: =datos_RdT!P39 -> 37 | Q16: =datos_RdT!Q39 -> 663 | S16: =datos_RdT!S39 -> 122 | T16: =datos_RdT!T39 -> 81 | U16: =datos_RdT!U39 -> 241 | V16: =SUM(C16:U16)+W16 -> 6328 | W16: =datos_RdT!W39 -> 7 | X16: =V16-C16 -> 5653
A17: 2022 | B17: transformadores | C17: =datos_RdT!C41 -> 15020 | D17: =datos_RdT!D41 -> 5056 | E17: =datos_RdT!E41 -> 1300 | F17: =datos_RdT!F41 -> 3838 | G17: =datos_RdT!G41 -> 8950 | H17: =datos_RdT!H41 -> 4005 | I17: =datos_RdT!I41 -> 2100 | J17: =datos_RdT!J41 -> 1800 | K17: =datos_RdT!K41 -> 6131 | L17: =datos_RdT!L41 -> 11500 | N17: =datos_RdT!N41 -> 3025 | O17: =datos_RdT!O41 -> 5700 | P17: =datos_RdT!P41 -> 600 | Q17: =datos_RdT!Q41 -> 11100 | S17: =datos_RdT!S41 -> 3450 | T17: =datos_RdT!T41 -> 1600 | U17: =datos_RdT!U41 -> 5100 | V17: =SUM(C17:U17)+W17 -> 91175 | W17: =datos_RdT!W41 -> 900 | X17: =V17-C17 -> 76155
A18: 2022 | B18: líneas | C18: =(C15/C9-1) -> 0.04099005028 | D18: =(D15/D9-1) -> 0 | E18: 0 | F18: 0.0004915024005 | G18: 0.004093493396 | H18: 0.01961102364 | I18: 0.01448023269 | J18: 0 | K18: 1.908249214e-05 | L18: 0 | N18: 0 | O18: 0 | P18: 0 | Q18: 0 | S18: 0 | T18: 0 | U18: 0 | V18: 0.006650863825
A19: 2022 | B19: posiciones | C19: =(C16/C10-1) -> 0.03053435115 | D19: =(D16/D10-1) -> 0.01749271137 | E19: 0 | F19: 0.01154401154 | G19: 0.02156862745 | H19: 0.04915514593 | I19: 0.046875 | J19: 0.03370786517 | K19: 0.0120240481 | L19: 0.001324503311 | N19: 0.03070175439 | O19: 0.003236245955 | P19: 0 | Q19: 0.004545454545 | S19: 0.01666666667 | T19: 0 | U19: 0 | V19: 0.01752693359
A20: 2022 | B20: transformadores | C20: =(C17/C11-1) -> 0 | D20: =(D17/D11-1) -> 0 | E20: 0 | F20: 0 | G20: 0 | H20: 0.03221649485 | I20: 0 | J20: =(J17/J11-1) -> 0.5 | K20: 0 | L20: 0 | N20: 0 | O20: 0 | Q20: 0 | S20: 0 | T20: 0 | U20: 0 | V20: 0.008015478165
A21: 2023 | B21: líneas | C21: =datos_RdT!C48 -> 6297.053084 | D21: =datos_RdT!D48 -> 3352.405516 | E21: =datos_RdT!E48 -> 938.8172245 | F21: =datos_RdT!F48 -> 2004.433 | G21: =datos_RdT!G48 -> 2474.749748 | H21: =datos_RdT!H48 -> 1621.73 | I21: =datos_RdT!I48 -> 572.9148104 | J21: =datos_RdT!J48 -> 4141.118476 | K21: =datos_RdT!K48 -> 7860.758506 | L21: =datos_RdT!L48 -> 4838.037627 | N21: =datos_RdT!N48 -> 3210.524314 | O21: =datos_RdT!O48 -> 2748.311287 | P21: =datos_RdT!P48 -> 257.2570595 | Q21: =datos_RdT!Q48 -> 2181.447094 | S21: =datos_RdT!S48 -> 831.9818771 | T21: =datos_RdT!T48 -> 494.7990904 | U21: =datos_RdT!U48 -> 1360.936285 | V21: =SUM(C21:U21) -> 45187.275 | X21: =V21-C21 -> 38890.22192
A22: 2023 | B22: posiciones | C22: =datos_RdT!C53 -> 704 | D22: =datos_RdT!D53 -> 363 | E22: =datos_RdT!E53 -> 99 | F22: =datos_RdT!F53 -> 717 | G22: =datos_RdT!G53 -> 533 | H22: =datos_RdT!H53 -> 693 | I22: =datos_RdT!I53 -> 70 | J22: =datos_RdT!J53 -> 279 | K22: =datos_RdT!K53 -> 516 | L22: =datos_RdT!L53 -> 764 | N22: =datos_RdT!N53 -> 236 | O22: =datos_RdT!O53 -> 318 | P22: =datos_RdT!P53 -> 38 | Q22: =datos_RdT!Q53 -> 675 | S22: =datos_RdT!S53 -> 130 | T22: =datos_RdT!T53 -> 87 | U22: =datos_RdT!U53 -> 242 | V22: =SUM(C22:U22)+W22 -> 6471 | W22: =datos_RdT!W53 -> 7 | X22: =V22-C22 -> 5767
A23: 2023 | B23: transformadores | C23: =datos_RdT!C55 -> 15020 | D23: =datos_RdT!D55 -> 5056 | E23: =datos_RdT!E55 -> 1300 | F23: =datos_RdT!F55 -> 3838 | G23: =datos_RdT!G55 -> 8950 | H23: =datos_RdT!H55 -> 4165 | I23: =datos_RdT!I55 -> 2100 | J23: =datos_RdT!J55 -> 1800 | K23: =datos_RdT!K55 -> 6131 | L23: =datos_RdT!L55 -> 11500 | N23: =datos_RdT!N55 -> 3025 | O23: =datos_RdT!O55 -> 5700 | P23: =datos_RdT!P55 -> 600 | Q23: =datos_RdT!Q55 -> 11700 | S23: =datos_RdT!S55 -> 3450 | T23: =datos_RdT!T55 -> 1600 | U23: =datos_RdT!U55 -> 5100 | V23: =SUM(C23:U23)+W23 -> 91935 | W23: =datos_RdT!W55 -> 900 | X23: =V23-C23 -> 76915
A24: 2023 | B24: líneas | C24: =(C21/C15-1) -> 0.00143749678 | D24: =(D21/D15-1) -> 0 | E24: -0.03375814999 | F24: 0.03871270977 | G24: 0.01642879315 | H24: 0.007788982821 | I24: 0.0001867991289 | J24: 0 | K24: 0 | L24: 0.003074717314 | N24: 0 | O24: 0.0003457863385 | P24: 0 | Q24: 0.0008451072192 | S24: 0 | T24: 0 | U24: 0 | V24: 0.002689540166
A25: 2023 | B25: posiciones | C25: =(C22/C16-1) -> 0.04296296296 | D25: =(D22/D16-1) -> 0.04011461318 | E25: 0 | F25: 0.02282453638 | G25: 0.02303262956 | H25: 0.01464128843 | I25: 0.0447761194 | J25: 0.01086956522 | K25: 0.02178217822 | L25: 0.01058201058 | N25: 0.004255319149 | O25: 0.02580645161 | P25: 0.02702702703 | Q25: 0.01809954751 | S25: 0.06557377049 | T25: 0.07407407407 | U25: 0.004149377593 | V25: 0.02259797724
A26: 2023 | B26: transformadores | C26: =(C23/C17-1) -> 0 | D26: =(D23/D17-1) -> 0 | E26: 0 | F26: 0 | G26: 0 | H26: 0.03995006242 | I26: 0 | J26: 0 | K26: 0 | L26: 0 | N26: 0 | O26: 0 | P26: 0 | Q26: 0.05405405405 | S26: 0 | T26: 0 | U26: 0 | V26: 0.008335618316
A27: 2024 | B27: líneas | C27: =datos_RdT!C62 -> 6336.163084 | D27: =datos_RdT!D62 -> 3355.024516 | E27: =datos_RdT!E62 -> 938.8172245 | F27: =datos_RdT!F62 -> 2014.083 | G27: =datos_RdT!G62 -> 2474.773748 | H27: =datos_RdT!H62 -> 1750.836 | I27: =datos_RdT!I62 -> 572.9148104 | J27: =datos_RdT!J62 -> 4141.118476 | K27: =datos_RdT!K62 -> 7860.758506 | L27: =datos_RdT!L62 -> 4879.064627 | M27: =datos_RdT!M62 -> 0 | N27: =datos_RdT!N62 -> 3274.269334 | O27: =datos_RdT!O62 -> 2795.628287 | P27: =datos_RdT!P62 -> 257.2570595 | Q27: =datos_RdT!Q62 -> 2184.111094 | S27: =datos_RdT!S62 -> 831.9818771 | T27: =datos_RdT!T62 -> 494.7990904 | U27: =datos_RdT!U62 -> 1507.870285 | V27: 45669.47102 | X27: =V27-C27 -> 39333.30794
A28: 2024 | B28: posiciones | C28: =datos_RdT!C67 -> 730 | D28: =datos_RdT!D67 -> 389 | E28: =datos_RdT!E67 -> 99 | F28: =datos_RdT!F67 -> 728 | G28: =datos_RdT!G67 -> 541 | H28: =datos_RdT!H67 -> 721 | I28: =datos_RdT!I67 -> 73 | J28: =datos_RdT!J67 -> 290 | K28: =datos_RdT!K67 -> 536 | L28: =datos_RdT!L67 -> 773 | M28: =datos_RdT!M67 -> 0 | N28: =datos_RdT!N67 -> 252 | O28: =datos_RdT!O67 -> 342 | P28: =datos_RdT!P67 -> 40 | Q28: =datos_RdT!Q67 -> 685 | S28: =datos_RdT!S67 -> 132 | T28: =datos_RdT!T67 -> 87 | U28: =datos_RdT!U67 -> 242 | V28: =SUM(C28:U28)+W28 -> 6667 | W28: =datos_RdT!W67 -> 7 | X28: =V28-C28 -> 5937
A29: 2024 | B29: transformadores | C29: =datos_RdT!C69 -> 15020 | D29: =datos_RdT!D69 -> 5656 | E29: =datos_RdT!E69 -> 1300 | F29: =datos_RdT!F69 -> 3998 | G29: =datos_RdT!G69 -> 8950 | H29: =datos_RdT!H69 -> 4540 | I29: =datos_RdT!I69 -> 2100 | J29: =datos_RdT!J69 -> 1800 | K29: =datos_RdT!K69 -> 6131 | L29: =datos_RdT!L69 -> 12000 | M29: =datos_RdT!M69 -> 0 | N29: =datos_RdT!N69 -> 3025 | O29: =datos_RdT!O69 -> 6300 | P29: =datos_RdT!P69 -> 600 | Q29: =datos_RdT!Q69 -> 11900 | S29: =datos_RdT!S69 -> 3450 | T29: =datos_RdT!T69 -> 1600 | U29: =datos_RdT!U69 -> 5300 | V29: =SUM(C29:U29)+W29 -> 94570 | W29: =datos_RdT!W69 -> 900 | X29: =V29-C29 -> 79550
A30: 2024 | B30: líneas | C30: =(C27/C21-1) -> 0.006210841718 | D30: =(D27/D21-1) -> 0.0007812300712 | E30: 0 | F30: 0.00481432904 | G30: 9.697950274e-06 | H30: 0.07961004606 | I30: 0 | J30: 0 | K30: 0 | L30: 0.008480091136 | N30: 0.01985501861 | O30: 0.01721675424 | P30: 0 | Q30: 0.001221207705 | S30: 0 | T30: 0 | U30: 0.1079653777 | V30: 0.01067105773
A31: 2024 | B31: posiciones | C31: =(C28/C22-1) -> 0.03693181818 | D31: =(D28/D22-1) -> 0.07162534435 | E31: 0 | F31: 0.01534170153 | G31: 0.01500938086 | H31: 0.0404040404 | I31: 0.04285714286 | J31: 0.0394265233 | K31: 0.03875968992 | L31: 0.01178010471 | N31: 0.06779661017 | O31: 0.07547169811 | P31: 0.05263157895 | Q31: 0.01481481481 | S31: 0.01538461538 | T31: 0 | U31: 0 | V31: 0.03028898161
A32: 2024 | B32: transformadores | C32: =(C29/C23-1) -> 0 | D32: =(D29/D23-1) -> 0.1186708861 | E32: 0 | F32: 0.04168837936 | G32: 0 | H32: 0.09003601441 | I32: 0 | J32: 0 | K32: 0 | L32: 0.04347826087 | N32: 0 | O32: 0.1052631579 | P32: 0 | Q32: 0.01709401709 | S32: 0 | T32: 0 | U32: 0.03921568627 | V32: 0.02866155436
A33: 2025 | B33: líneas | C33: =datos_RdT!C76 -> 6456.948084 | D33: =datos_RdT!D76 -> 3355.024516 | E33: =datos_RdT!E76 -> 940.1422245 | F33: =datos_RdT!F76 -> 2015.882 | G33: =datos_RdT!G76 -> 2477.360748 | H33: =datos_RdT!H76 -> 1877.623 | I33: =datos_RdT!I76 -> 573.7498104 | J33: =datos_RdT!J76 -> 4141.536476 | K33: =datos_RdT!K76 -> 7860.924506 | L33: =datos_RdT!L76 -> 4948.381627 | N33: =datos_RdT!N76 -> 3281.143334 | O33: =datos_RdT!O76 -> 2877.738287 | P33: =datos_RdT!P76 -> 257.2570595 | Q33: =datos_RdT!Q76 -> 2186.551094 | S33: =datos_RdT!S76 -> 832.9478771 | T33: =datos_RdT!T76 -> 494.7990904 | U33: =datos_RdT!U76 -> 1507.870285 | V33: =datos_RdT!V76 -> 46155.20002 | X33: =V33-C33 -> 39698.25194
A34: 2025 | B34: posiciones | C34: =datos_RdT!C81 -> 769 | D34: =datos_RdT!D81 -> 399 | E34: =datos_RdT!E81 -> 100 | F34: =datos_RdT!F81 -> 741 | G34: =datos_RdT!G81 -> 557 | H34: =datos_RdT!H81 -> 764 | I34: =datos_RdT!I81 -> 74 | J34: =datos_RdT!J81 -> 306 | K34: =datos_RdT!K81 -> 546 | L34: =datos_RdT!L81 -> 784 | N34: =datos_RdT!N81 -> 267 | O34: =datos_RdT!O81 -> 344 | P34: =datos_RdT!P81 -> 41 | Q34: =datos_RdT!Q81 -> 700 | S34: =datos_RdT!S81 -> 136 | T34: =datos_RdT!T81 -> 90 | U34: =datos_RdT!U81 -> 246 | V34: =datos_RdT!V81 -> 6879 | W34: =datos_RdT!W81 -> 7 | X34: =V34-C34 -> 6110
A35: 2025 | B35: transformadores | C35: =datos_RdT!C83 -> 15270 | D35: =datos_RdT!D83 -> 6256 | E35: =datos_RdT!E83 -> 1300 | F35: =datos_RdT!F83 -> 4478 | G35: =datos_RdT!G83 -> 8950 | H35: =datos_RdT!H83 -> 4665 | I35: =datos_RdT!I83 -> 2100 | J35: =datos_RdT!J83 -> 1800 | K35: =datos_RdT!K83 -> 6131 | L35: =datos_RdT!L83 -> 12000 | N35: =datos_RdT!N83 -> 3025 | O35: =datos_RdT!O83 -> 6300 | P35: =datos_RdT!P83 -> 600 | Q35: =datos_RdT!Q83 -> 11900 | S35: =datos_RdT!S83 -> 3450 | T35: =datos_RdT!T83 -> 1600 | U35: =datos_RdT!U83 -> 5300 | V35: =datos_RdT!V83 -> 96025 | W35: =datos_RdT!W83 -> 900 | X35: =V35-C35 -> 80755
A36: 2025 | B36: líneas | C36: =(C33/C27-1) -> 0.01906279848 | D36: =(D33/D27-1) -> 0 | E36: 0.00141135033 | F36: 0.0008932104586 | G36: 0.001045348086 | H36: 0.07241512055 | I36: 0.001457459268 | J36: 0.0001009389136 | K36: 2.111755499e-05 | L36: 0.01420702641 | N36: 0.002099399682 | O36: 0.02937085748 | P36: 0 | Q36: 0.00111715929 | S36: 0.001161082983 | T36: 0 | U36: 0 | V36: 0.01063574833
A37: 2025 | B37: posiciones | C37: =(C34/C28-1) -> 0.05342465753 | D37: =(D34/D28-1) -> 0.02570694087 | E37: 0.0101010101 | F37: 0.01785714286 | G37: 0.02957486137 | H37: 0.05963938974 | I37: 0.01369863014 | J37: 0.05517241379 | K37: 0.01865671642 | L37: 0.01423027167 | N37: 0.05952380952 | O37: 0.005847953216 | P37: 0.025 | Q37: 0.02189781022 | S37: 0.0303030303 | T37: 0.03448275862 | U37: 0.01652892562 | V37: 0.03179841008
A38: 2025 | B38: transformadores | C38: =(C35/C29-1) -> 0.01664447403 | D38: =(D35/D29-1) -> 0.1060820368 | E38: 0 | F38: 0.12006003 | G38: 0 | H38: 0.02753303965 | I38: 0 | J38: 0 | K38: 0 | L38: 0 | N38: 0 | O38: 0 | P38: 0 | Q38: 0 | S38: 0 | T38: 0 | U38: 0 | V38: 0.01538542878

Sheet Año (hidden)
B2: 2020
B3: 2021
B4: 2022
B5: 2023
B6: 2024
B7: 2025
